[Event "Titled Tuesday Blitz June 27 Late 2023"]
[White "Gokerkan, Cem Kaan"]
[Black "Ibarra Jerez, Jose Carlos"]
[WhiteFideId "6336760"]
[BlackFideId "2226332"]
[WhiteElo "2699"]
[BlackElo "2894"]
[Result "1-0"]
[Round "6"]
[TimeControl "180+2"]
[Date "2023.06.27"]
[WhiteClock "0:00:11"]
[BlackClock "0:00:00"]
[Board "22"]

1. e4 {[%clk 0:03:00]}  c5 {[%clk 0:03:00]} 2. Nf3 {[%clk 0:03:01]}  Nc6 {[%clk 0:03:00]} 3. Bb5 {[%clk 0:03:01]}  e6 {[%clk 0:02:59]} 4. O-O {[%clk 0:03:00]}  Nge7 {[%clk 0:02:59]} 5. b3 {[%clk 0:03:00]}  Nd4 {[%clk 0:02:58]} 6. Nxd4 {[%clk 0:02:57]}  cxd4 {[%clk 0:02:59]} 7. Bb2 {[%clk 0:02:49]}  a6 {[%clk 0:02:59]} 8. Bd3 {[%clk 0:02:35]}  Nc6 {[%clk 0:02:59]} 9. c3 {[%clk 0:02:34]}  Bc5 {[%clk 0:02:59]} 10. b4 {[%clk 0:02:30]}  Ba7 {[%clk 0:02:59]} 11. Na3 {[%clk 0:02:20]}  O-O {[%clk 0:02:58]} 12. Nc2 {[%clk 0:02:20]}  Ne5 {[%clk 0:02:55]} 13. Qe2 {[%clk 0:02:14]}  dxc3 {[%clk 0:02:51]} 14. Bxc3 {[%clk 0:02:02]}  d6 {[%clk 0:02:49]} 15. Ne3 {[%clk 0:01:54]}  Bd7 {[%clk 0:02:46]} 16. a4 {[%clk 0:01:40]}  Qe8 {[%clk 0:02:33]} 17. Bc2 {[%clk 0:01:38]}  Rc8 {[%clk 0:02:21]} 18. Kh1 {[%clk 0:01:39]}  Nc6 {[%clk 0:02:19]} 19. Qd3 {[%clk 0:01:32]}  e5 {[%clk 0:02:05]} 20. b5 {[%clk 0:00:53]}  Nd4 {[%clk 0:02:04]} 21. bxa6 {[%clk 0:00:53]}  bxa6 {[%clk 0:02:00]} 22. Bd1 {[%clk 0:00:46]}  Bc5 {[%clk 0:01:33]} 23. Qxa6 {[%clk 0:00:45]}  Ra8 {[%clk 0:01:32]} 24. Qc4 {[%clk 0:00:42]}  Kh8 {[%clk 0:01:22]} 25. Nd5 {[%clk 0:00:42]}  Ra7 {[%clk 0:01:13]} 26. f4 {[%clk 0:00:37]}  Qc8 {[%clk 0:00:57]} 27. d3 {[%clk 0:00:31]}  f6 {[%clk 0:00:52]} 28. Rc1 {[%clk 0:00:25]}  Qe8 {[%clk 0:00:41]} 29. fxe5 {[%clk 0:00:23]}  fxe5 {[%clk 0:00:42]} 30. Bh5 {[%clk 0:00:17]}  g6 {[%clk 0:00:30]} 31. Nf6 {[%clk 0:00:17]}  Rxf6 {[%clk 0:00:13]} 32. Rxf6 {[%clk 0:00:18]}  Rxa4 {[%clk 0:00:13]} 33. Qf7 {[%clk 0:00:18]}  Qxf7 {[%clk 0:00:09]} 34. Rxf7 {[%clk 0:00:19]}  Be6 {[%clk 0:00:09]} 35. Re7 {[%clk 0:00:17]}  Bg8 {[%clk 0:00:03]} 36. Bxd4 {[%clk 0:00:16]}  Bxd4 {[%clk 0:00:03]} 37. Bg4 {[%clk 0:00:16]}  Ra8 {[%clk 0:00:01]} 38. Be6 {[%clk 0:00:16]}  Bc5 {[%clk 0:00:01]} 39. Bxg8 {[%clk 0:00:14]}  Kxg8 {[%clk 0:00:02]} 40. g3 {[%clk 0:00:15]}  Rf8 {[%clk 0:00:01]} 41. Kg2 {[%clk 0:00:15]}  Rf2+ {[%clk 0:00:02]} 42. Kh3 {[%clk 0:00:15]}  h5 {[%clk 0:00:01]} 43. Rb1 {[%clk 0:00:15]}  Rf8 {[%clk 0:00:02]} 44. Rbb7 {[%clk 0:00:15]}  Rc8 {[%clk 0:00:01]} 45. Rec7 {[%clk 0:00:14]}  Rd8 {[%clk 0:00:01]} 46. Rd7 {[%clk 0:00:15]}  Rf8 {[%clk 0:00:02]} 47. Kh4 {[%clk 0:00:14]}  Re8 {[%clk 0:00:01]} 48. Kg5 {[%clk 0:00:14]}  d5 {[%clk 0:00:01]} 49. Kxg6 {[%clk 0:00:12]}  Re6+ {[%clk 0:00:01]} 50. Kf5 {[%clk 0:00:13]}  Re8 {[%clk 0:00:00]} 51. exd5 {[%clk 0:00:11]} 1-0


[Site "https://www.chess.com"]

[Event "Titled Tuesday Blitz June 27 Late 2023"]
[White "Rustemov, Alexander"]
[Black "Harikrishnan.A.Ra"]
[WhiteFideId "4119002"]
[BlackFideId "5081483"]
[WhiteElo "2886"]
[BlackElo "2697"]
[Result "1-0"]
[Round "6"]
[TimeControl "180+2"]
[Date "2023.06.27"]
[WhiteClock "0:00:35"]
[BlackClock "0:00:00"]
[Board "23"]

1. d4 {[%clk 0:03:00]}  Nf6 {[%clk 0:02:58]} 2. c4 {[%clk 0:03:01]}  e6 {[%clk 0:02:57]} 3. Nf3 {[%clk 0:03:01]}  d5 {[%clk 0:02:53]} 4. Nc3 {[%clk 0:03:01]}  c6 {[%clk 0:02:50]} 5. e3 {[%clk 0:03:01]}  Nbd7 {[%clk 0:02:49]} 6. Qc2 {[%clk 0:03:01]}  Bd6 {[%clk 0:02:47]} 7. Bd2 {[%clk 0:03:02]}  O-O {[%clk 0:02:47]} 8. O-O-O {[%clk 0:03:02]}  dxc4 {[%clk 0:02:47]} 9. Bxc4 {[%clk 0:03:02]}  b5 {[%clk 0:02:47]} 10. Bd3 {[%clk 0:03:03]}  a6 {[%clk 0:02:47]} 11. e4 {[%clk 0:02:58]}  e5 {[%clk 0:02:47]} 12. dxe5 {[%clk 0:02:51]}  Nxe5 {[%clk 0:02:31]} 13. Nxe5 {[%clk 0:02:51]}  Bxe5 {[%clk 0:02:31]} 14. f4 {[%clk 0:02:51]}  Bxc3 {[%clk 0:02:26]} 15. Bxc3 {[%clk 0:02:52]}  Qe7 {[%clk 0:02:07]} 16. Bd4 {[%clk 0:02:39]}  Rd8 {[%clk 0:02:01]} 17. Bc5 {[%clk 0:02:38]}  Qe6 {[%clk 0:01:58]} 18. Kb1 {[%clk 0:02:34]}  h6 {[%clk 0:01:52]} 19. Rhe1 {[%clk 0:02:22]}  Qe8 {[%clk 0:01:45]} 20. h3 {[%clk 0:02:04]}  Rb8 {[%clk 0:01:34]} 21. g4 {[%clk 0:02:03]}  Rb7 {[%clk 0:01:32]} 22. e5 {[%clk 0:01:56]}  Nd5 {[%clk 0:01:29]} 23. Qf2 {[%clk 0:01:56]}  Rbd7 {[%clk 0:01:15]} 24. Bd6 {[%clk 0:01:53]}  a5 {[%clk 0:00:51]} 25. Bf5 {[%clk 0:01:47]}  Rb7 {[%clk 0:00:50]} 26. Be4 {[%clk 0:01:46]}  b4 {[%clk 0:00:38]} 27. f5 {[%clk 0:01:42]}  Rb5 {[%clk 0:00:26]} 28. Bd3 {[%clk 0:01:33]}  Rb7 {[%clk 0:00:21]} 29. Qc5 {[%clk 0:01:30]}  Rbd7 {[%clk 0:00:18]} 30. Be4 {[%clk 0:01:25]}  Bb7 {[%clk 0:00:13]} 31. h4 {[%clk 0:01:23]}  Nf4 {[%clk 0:00:13]} 32. Qxa5 {[%clk 0:01:13]}  Ra8 {[%clk 0:00:12]} 33. Qxb4 {[%clk 0:01:12]}  c5 {[%clk 0:00:12]} 34. Qxc5 {[%clk 0:01:09]}  Ng2 {[%clk 0:00:05]} 35. Bxg2 {[%clk 0:01:02]}  Bxg2 {[%clk 0:00:05]} 36. e6 {[%clk 0:01:03]}  fxe6 {[%clk 0:00:05]} 37. fxe6 {[%clk 0:01:02]}  Qg6+ {[%clk 0:00:05]} 38. Qf5 {[%clk 0:00:58]}  Qxf5+ {[%clk 0:00:03]} 39. gxf5 {[%clk 0:00:58]}  Rda7 {[%clk 0:00:03]} 40. a3 {[%clk 0:00:53]}  Bh3 {[%clk 0:00:03]} 41. Re5 {[%clk 0:00:51]}  Ra6 {[%clk 0:00:01]} 42. Bb4 {[%clk 0:00:46]}  Re8 {[%clk 0:00:02]} 43. Bc3 {[%clk 0:00:44]}  Ra4 {[%clk 0:00:02]} 44. Rg1 {[%clk 0:00:43]}  Rf4 {[%clk 0:00:02]} 45. Rxg7+ {[%clk 0:00:33]}  Kxg7 {[%clk 0:00:02]} 46. Re4+ {[%clk 0:00:34]}  Kh7 {[%clk 0:00:00]} 47. Rxf4 {[%clk 0:00:35]} 1-0


[Site "https://www.chess.com"]

[Event "Titled Tuesday Blitz June 27 Late 2023"]
[White "Holt, Conrad"]
[Black "De La Villa Garcia, Jesus Maria"]
[WhiteFideId "2034387"]
[BlackFideId "2200040"]
[WhiteElo "2879"]
[BlackElo "2654"]
[Result "1-0"]
[Round "6"]
[TimeControl "180+2"]
[Date "2023.06.27"]
[WhiteClock "0:00:46"]
[BlackClock "0:00:00"]
[Board "25"]

1. d4 {[%clk 0:03:00]}  Nf6 {[%clk 0:03:00]} 2. c4 {[%clk 0:03:01]}  e6 {[%clk 0:02:59]} 3. Nc3 {[%clk 0:03:02]}  Bb4 {[%clk 0:02:59]} 4. Qc2 {[%clk 0:03:02]}  O-O {[%clk 0:02:59]} 5. e4 {[%clk 0:03:02]}  d6 {[%clk 0:02:57]} 6. a3 {[%clk 0:03:02]}  Bxc3+ {[%clk 0:02:53]} 7. bxc3 {[%clk 0:03:03]}  c5 {[%clk 0:02:52]} 8. e5 {[%clk 0:03:03]}  dxe5 {[%clk 0:02:50]} 9. dxe5 {[%clk 0:03:03]}  Nfd7 {[%clk 0:02:51]} 10. Nf3 {[%clk 0:03:02]}  Nc6 {[%clk 0:02:50]} 11. Bf4 {[%clk 0:03:01]}  f6 {[%clk 0:02:42]} 12. Bd3 {[%clk 0:02:55]}  h6 {[%clk 0:02:35]} 13. exf6 {[%clk 0:02:54]}  Qxf6 {[%clk 0:02:34]} 14. Bd6 {[%clk 0:02:50]}  Rd8 {[%clk 0:02:27]} 15. Bc7 {[%clk 0:02:48]}  Rf8 {[%clk 0:02:23]} 16. O-O {[%clk 0:02:46]}  Nde5 {[%clk 0:02:10]} 17. Nxe5 {[%clk 0:02:29]}  Nxe5 {[%clk 0:02:11]} 18. Bh7+ {[%clk 0:02:27]}  Kh8 {[%clk 0:02:10]} 19. Bd6 {[%clk 0:02:17]}  Re8 {[%clk 0:01:58]} 20. Bxc5 {[%clk 0:02:11]}  Nxc4 {[%clk 0:01:54]} 21. Bd3 {[%clk 0:02:06]}  Nb6 {[%clk 0:01:51]} 22. Bg6 {[%clk 0:01:50]}  Rg8 {[%clk 0:01:40]} 23. f4 {[%clk 0:01:49]}  Bd7 {[%clk 0:01:38]} 24. Bd4 {[%clk 0:01:47]}  Qe7 {[%clk 0:00:57]} 25. Rae1 {[%clk 0:01:38]}  Nd5 {[%clk 0:00:48]} 26. f5 {[%clk 0:01:34]}  Raf8 {[%clk 0:00:42]} 27. Qe4 {[%clk 0:01:19]}  Qg5 {[%clk 0:00:11]} 28. h4 {[%clk 0:00:45]}  Qg3 {[%clk 0:00:00]} 29. Be5 {[%clk 0:00:46]} 1-0


[Site "https://www.chess.com"]

[Event "Titled Tuesday Blitz June 27 Late 2023"]
[White "Wieczorek, Oskar"]
[Black "Salem, A.R. Saleh"]
[WhiteFideId "1133950"]
[BlackFideId "9301348"]
[WhiteElo "2732"]
[BlackElo "2983"]
[Result "0-1"]
[Round "6"]
[TimeControl "180+2"]
[Date "2023.06.27"]
[WhiteClock "0:01:48"]
[BlackClock "0:02:45"]
[Board "29"]

1. e4 {[%clk 0:02:57]}  c6 {[%clk 0:03:00]} 2. d4 {[%clk 0:02:57]}  d5 {[%clk 0:03:01]} 3. Nd2 {[%clk 0:02:57]}  dxe4 {[%clk 0:03:01]} 4. Nxe4 {[%clk 0:02:58]}  Nf6 {[%clk 0:03:02]} 5. Nxf6+ {[%clk 0:02:58]}  exf6 {[%clk 0:03:03]} 6. Be2 {[%clk 0:02:59]}  Bd6 {[%clk 0:03:03]} 7. Bf3 {[%clk 0:02:59]}  O-O {[%clk 0:03:02]} 8. Ne2 {[%clk 0:03:00]}  Re8 {[%clk 0:03:03]} 9. O-O {[%clk 0:03:01]}  Qc7 {[%clk 0:03:03]} 10. h3 {[%clk 0:03:00]}  a5 {[%clk 0:03:02]} 11. c4 {[%clk 0:03:01]}  Na6 {[%clk 0:02:56]} 12. Be3 {[%clk 0:02:47]}  Bf5 {[%clk 0:02:55]} 13. Rc1 {[%clk 0:02:39]}  Rad8 {[%clk 0:02:55]} 14. Qb3 {[%clk 0:02:33]}  Qc8 {[%clk 0:02:45]} 15. Ng3 {[%clk 0:01:48]}  a4 {[%clk 0:02:45]} 0-1


[Site "https://www.chess.com"]

[Event "Titled Tuesday Blitz June 27 Late 2023"]
[White "Antipov, Mikhail Al."]
[Black "Pakleza, Zbigniew"]
[WhiteFideId "4107012"]
[BlackFideId "1119290"]
[WhiteElo "2909"]
[BlackElo "2722"]
[Result "1-0"]
[Round "6"]
[TimeControl "180+2"]
[Date "2023.06.27"]
[WhiteClock "0:01:43"]
[BlackClock "0:00:49"]
[Board "30"]

1. e4 {[%clk 0:03:00]}  d6 {[%clk 0:02:55]} 2. d4 {[%clk 0:03:00]}  Nf6 {[%clk 0:02:56]} 3. Nc3 {[%clk 0:02:59]}  c6 {[%clk 0:02:56]} 4. f4 {[%clk 0:02:55]}  Qb6 {[%clk 0:02:56]} 5. e5 {[%clk 0:02:50]}  Nd5 {[%clk 0:02:56]} 6. Nxd5 {[%clk 0:02:49]}  cxd5 {[%clk 0:02:57]} 7. Bd3 {[%clk 0:02:49]}  Nc6 {[%clk 0:02:57]} 8. c3 {[%clk 0:02:49]}  g6 {[%clk 0:02:57]} 9. Nf3 {[%clk 0:02:45]}  Bf5 {[%clk 0:02:57]} 10. O-O {[%clk 0:02:40]}  e6 {[%clk 0:02:57]} 11. Rf2 {[%clk 0:02:38]}  Be7 {[%clk 0:02:55]} 12. Be3 {[%clk 0:02:32]}  O-O-O {[%clk 0:02:51]} 13. b4 {[%clk 0:02:27]}  Kb8 {[%clk 0:02:51]} 14. Bf1 {[%clk 0:02:26]}  Rc8 {[%clk 0:02:48]} 15. a4 {[%clk 0:02:26]}  f6 {[%clk 0:02:35]} 16. a5 {[%clk 0:02:23]}  Qd8 {[%clk 0:02:33]} 17. b5 {[%clk 0:02:22]}  Nxa5 {[%clk 0:02:30]} 18. Rfa2 {[%clk 0:02:20]}  b6 {[%clk 0:02:27]} 19. Bd2 {[%clk 0:02:10]}  Qd7 {[%clk 0:02:02]} 20. c4 {[%clk 0:02:08]}  Nxc4 {[%clk 0:01:54]} 21. Rxa7 {[%clk 0:02:05]}  Qxa7 {[%clk 0:01:55]} 22. Rxa7 {[%clk 0:02:05]}  Kxa7 {[%clk 0:01:55]} 23. Qa1+ {[%clk 0:02:06]}  Kb8 {[%clk 0:01:23]} 24. Bb4 {[%clk 0:01:59]}  Na5 {[%clk 0:01:08]} 25. Bxa5 {[%clk 0:01:43]}  bxa5 {[%clk 0:01:09]} 26. Qxa5 {[%clk 0:01:43]}  Bd8 {[%clk 0:00:49]} 27. b6 {[%clk 0:01:43]} 1-0


[Site "https://www.chess.com"]

[Event "Titled Tuesday Blitz June 27 Late 2023"]
[White "Lamard, Guillaume"]
[Black "Dardha, Daniel"]
[WhiteFideId "600261"]
[BlackFideId "240990"]
[WhiteElo "2649"]
[BlackElo "2896"]
[Result "0-1"]
[Round "6"]
[TimeControl "180+2"]
[Date "2023.06.27"]
[WhiteClock "0:00:05"]
[BlackClock "0:00:06"]
[Board "31"]

1. d4 {[%clk 0:02:56]}  Nf6 {[%clk 0:02:56]} 2. c4 {[%clk 0:02:56]}  c5 {[%clk 0:02:55]} 3. d5 {[%clk 0:02:56]}  a6 {[%clk 0:02:56]} 4. Qc2 {[%clk 0:02:52]}  b5 {[%clk 0:02:54]} 5. e4 {[%clk 0:02:53]}  d6 {[%clk 0:02:54]} 6. Nf3 {[%clk 0:02:51]}  g6 {[%clk 0:02:51]} 7. b3 {[%clk 0:02:51]}  Bg7 {[%clk 0:02:47]} 8. Bb2 {[%clk 0:02:51]}  O-O {[%clk 0:02:47]} 9. Bd3 {[%clk 0:02:50]}  e5 {[%clk 0:02:41]} 10. Nbd2 {[%clk 0:02:42]}  b4 {[%clk 0:02:34]} 11. a3 {[%clk 0:02:39]}  Nbd7 {[%clk 0:02:32]} 12. O-O {[%clk 0:02:21]}  a5 {[%clk 0:02:27]} 13. g3 {[%clk 0:02:20]}  Ng4 {[%clk 0:02:25]} 14. h3 {[%clk 0:02:15]}  Nh6 {[%clk 0:02:23]} 15. Nh4 {[%clk 0:02:07]}  Nb6 {[%clk 0:02:09]} 16. axb4 {[%clk 0:02:05]}  axb4 {[%clk 0:02:04]} 17. Rxa8 {[%clk 0:02:03]}  Nxa8 {[%clk 0:02:04]} 18. Kg2 {[%clk 0:01:45]}  f5 {[%clk 0:02:00]} 19. exf5 {[%clk 0:01:39]}  gxf5 {[%clk 0:02:01]} 20. f4 {[%clk 0:01:38]}  e4 {[%clk 0:01:53]} 21. Be2 {[%clk 0:01:34]}  Bd7 {[%clk 0:01:46]} 22. Ra1 {[%clk 0:01:32]}  Nb6 {[%clk 0:01:45]} 23. Bxg7 {[%clk 0:01:30]}  Kxg7 {[%clk 0:01:41]} 24. Qb2+ {[%clk 0:01:30]}  Kg8 {[%clk 0:01:41]} 25. Nf1 {[%clk 0:01:29]}  Qe7 {[%clk 0:01:34]} 26. Ra6 {[%clk 0:01:27]}  Nc8 {[%clk 0:01:34]} 27. Ne3 {[%clk 0:01:26]}  Qg7 {[%clk 0:01:34]} 28. Qxg7+ {[%clk 0:01:25]}  Kxg7 {[%clk 0:01:35]} 29. Bh5 {[%clk 0:01:18]}  Rf6 {[%clk 0:01:31]} 30. Ra8 {[%clk 0:01:14]}  Kf8 {[%clk 0:01:30]} 31. Rb8 {[%clk 0:01:10]}  Ke7 {[%clk 0:01:30]} 32. Rb7 {[%clk 0:01:10]}  Kd8 {[%clk 0:01:30]} 33. g4 {[%clk 0:00:48]}  fxg4 {[%clk 0:01:26]} 34. hxg4 {[%clk 0:00:49]}  Rxf4 {[%clk 0:01:25]} 35. Kg3 {[%clk 0:00:50]}  Rf8 {[%clk 0:01:19]} 36. g5 {[%clk 0:00:36]}  Nf7 {[%clk 0:01:14]} 37. Bg4 {[%clk 0:00:31]}  Bxg4 {[%clk 0:00:56]} 38. Kxg4 {[%clk 0:00:32]}  Ne5+ {[%clk 0:00:56]} 39. Kh5 {[%clk 0:00:31]}  Rf7 {[%clk 0:00:33]} 40. Rxf7 {[%clk 0:00:23]}  Nxf7 {[%clk 0:00:34]} 41. g6 {[%clk 0:00:23]}  hxg6+ {[%clk 0:00:34]} 42. Kxg6 {[%clk 0:00:24]}  Ne5+ {[%clk 0:00:32]} 43. Kf5 {[%clk 0:00:23]}  Nd3 {[%clk 0:00:27]} 44. Nc2 {[%clk 0:00:14]}  e3 {[%clk 0:00:18]} 45. Ke4 {[%clk 0:00:11]}  Nc1 {[%clk 0:00:18]} 46. Na1 {[%clk 0:00:10]}  e2 {[%clk 0:00:13]} 47. Nf3 {[%clk 0:00:10]}  Ne7 {[%clk 0:00:10]} 48. Ke3 {[%clk 0:00:11]}  Nf5+ {[%clk 0:00:06]} 49. Kd2 {[%clk 0:00:09]}  Nd4 {[%clk 0:00:06]} 50. Nxd4 {[%clk 0:00:08]}  cxd4 {[%clk 0:00:07]} 51. Nc2 {[%clk 0:00:08]}  d3 {[%clk 0:00:06]} 52. Nxb4 {[%clk 0:00:05]}  Nxb3+ {[%clk 0:00:06]} 53. Ke1 {[%clk 0:00:05]}  Nc5 {[%clk 0:00:06]} 54. Kd2 {[%clk 0:00:02]}  Ke7 {[%clk 0:00:06]} 55. Na2 {[%clk 0:00:03]}  Kf6 {[%clk 0:00:06]} 56. Nc3 {[%clk 0:00:04]}  Ke5 {[%clk 0:00:06]} 57. Nb5 {[%clk 0:00:04]}  Ne4+ {[%clk 0:00:06]} 58. Ke1 {[%clk 0:00:04]}  Kf4 {[%clk 0:00:06]} 59. Nxd6 {[%clk 0:00:03]}  Nxd6 {[%clk 0:00:06]} 60. c5 {[%clk 0:00:04]}  Ne4 {[%clk 0:00:05]} 61. c6 {[%clk 0:00:04]}  Ke3 {[%clk 0:00:05]} 62. d6 {[%clk 0:00:05]}  d2# {[%clk 0:00:06]} 0-1


[Site "https://www.chess.com"]

[Event "Titled Tuesday Blitz June 27 Late 2023"]
[White "Cuenca Jimenez, Jose Fernando"]
[Black "Licznerski, Lukasz"]
[WhiteFideId "2255570"]
[BlackFideId "1179250"]
[WhiteElo "2682"]
[BlackElo "2861"]
[Result "1-0"]
[Round "6"]
[TimeControl "180+2"]
[Date "2023.06.27"]
[WhiteClock "0:02:10"]
[BlackClock "0:00:00"]
[Board "32"]

1. c4 {[%clk 0:03:00]}  Nf6 {[%clk 0:03:00]} 2. Nc3 {[%clk 0:03:01]}  d5 {[%clk 0:02:57]} 3. cxd5 {[%clk 0:03:00]}  Nxd5 {[%clk 0:02:58]} 4. Nf3 {[%clk 0:03:00]}  g6 {[%clk 0:02:58]} 5. e4 {[%clk 0:02:58]}  Nxc3 {[%clk 0:02:58]} 6. dxc3 {[%clk 0:02:59]}  Qxd1+ {[%clk 0:02:58]} 7. Kxd1 {[%clk 0:02:59]}  Nc6 {[%clk 0:02:40]} 8. Kc2 {[%clk 0:02:58]}  Bd7 {[%clk 0:02:20]} 9. Be3 {[%clk 0:02:54]}  O-O-O {[%clk 0:02:17]} 10. Nd2 {[%clk 0:02:54]}  h5 {[%clk 0:02:12]} 11. f3 {[%clk 0:02:54]}  Bh6 {[%clk 0:02:12]} 12. Bxh6 {[%clk 0:02:54]}  Rxh6 {[%clk 0:02:13]} 13. b4 {[%clk 0:02:53]}  h4 {[%clk 0:02:11]} 14. Nc4 {[%clk 0:02:51]}  Be6 {[%clk 0:01:57]} 15. Be2 {[%clk 0:02:50]}  g5 {[%clk 0:01:56]} 16. Ne3 {[%clk 0:02:49]}  Ne5 {[%clk 0:01:54]} 17. a4 {[%clk 0:02:48]}  Ng6 {[%clk 0:01:30]} 18. Rhd1 {[%clk 0:02:43]}  Rd6 {[%clk 0:01:25]} 19. c4 {[%clk 0:02:40]}  Rh8 {[%clk 0:01:14]} 20. c5 {[%clk 0:02:40]}  Rdd8 {[%clk 0:01:13]} 21. Rxd8+ {[%clk 0:02:35]}  Rxd8 {[%clk 0:01:12]} 22. Rd1 {[%clk 0:02:35]}  Rh8 {[%clk 0:01:08]} 23. b5 {[%clk 0:02:29]}  c6 {[%clk 0:01:05]} 24. Kc3 {[%clk 0:02:28]}  Kc7 {[%clk 0:01:04]} 25. Rb1 {[%clk 0:02:25]}  Ne5 {[%clk 0:00:54]} 26. b6+ {[%clk 0:02:24]}  Kb8 {[%clk 0:00:51]} 27. a5 {[%clk 0:02:22]}  Nd7 {[%clk 0:00:44]} 28. Kb4 {[%clk 0:02:13]}  f6 {[%clk 0:00:37]} 29. Rd1 {[%clk 0:02:13]}  a6 {[%clk 0:00:00]} 30. Bc4 {[%clk 0:02:10]} 1-0


[Site "https://www.chess.com"]

[Event "Titled Tuesday Blitz June 27 Late 2023"]
[White "JackRodgers"]
[Black "Hamidi, Amir Mohammad"]
[BlackFideId "12563285"]
[WhiteElo "2556"]
[BlackElo "2829"]
[Result "1-0"]
[Round "6"]
[TimeControl "180+2"]
[Date "2023.06.27"]
[WhiteClock "0:00:48"]
[BlackClock "0:01:55"]
[Board "34"]

1. d4 {[%clk 0:03:00]}  Nf6 {[%clk 0:02:57]} 2. Bg5 {[%clk 0:03:00]}  d5 {[%clk 0:02:56]} 3. Bxf6 {[%clk 0:03:00]}  exf6 {[%clk 0:02:57]} 4. e3 {[%clk 0:03:00]}  Bd6 {[%clk 0:02:57]} 5. g3 {[%clk 0:03:00]}  O-O {[%clk 0:02:58]} 6. Bg2 {[%clk 0:03:01]}  c6 {[%clk 0:02:58]} 7. Ne2 {[%clk 0:03:01]}  f5 {[%clk 0:02:59]} 8. b3 {[%clk 0:02:59]}  Nd7 {[%clk 0:02:59]} 9. c4 {[%clk 0:02:56]}  dxc4 {[%clk 0:02:57]} 10. bxc4 {[%clk 0:02:56]}  Nf6 {[%clk 0:02:58]} 11. c5 {[%clk 0:02:56]}  Bc7 {[%clk 0:02:58]} 12. O-O {[%clk 0:02:55]}  Qe7 {[%clk 0:02:59]} 13. Nd2 {[%clk 0:02:52]}  Rd8 {[%clk 0:03:00]} 14. Qc2 {[%clk 0:02:52]}  g6 {[%clk 0:02:58]} 15. Rab1 {[%clk 0:02:51]}  Rb8 {[%clk 0:02:59]} 16. Nc4 {[%clk 0:02:48]}  Nd5 {[%clk 0:02:57]} 17. Rfe1 {[%clk 0:02:43]}  Be6 {[%clk 0:02:56]} 18. Nf4 {[%clk 0:02:40]}  Nxf4 {[%clk 0:02:55]} 19. gxf4 {[%clk 0:02:41]}  g5 {[%clk 0:02:50]} 20. fxg5 {[%clk 0:02:36]}  Qxg5 {[%clk 0:02:50]} 21. f4 {[%clk 0:02:34]}  Qh6 {[%clk 0:02:50]} 22. Kh1 {[%clk 0:02:26]}  Kh8 {[%clk 0:02:49]} 23. Rg1 {[%clk 0:02:19]}  Rg8 {[%clk 0:02:48]} 24. Ne5 {[%clk 0:02:17]}  Qf6 {[%clk 0:02:46]} 25. Bf3 {[%clk 0:02:15]}  Rg6 {[%clk 0:02:45]} 26. Nxg6+ {[%clk 0:02:10]}  hxg6 {[%clk 0:02:46]} 27. Qg2 {[%clk 0:02:00]}  Bd8 {[%clk 0:02:33]} 28. Bxc6 {[%clk 0:01:54]}  Bxa2 {[%clk 0:02:30]} 29. Rxb7 {[%clk 0:01:51]}  Rxb7 {[%clk 0:02:27]} 30. Bxb7 {[%clk 0:01:52]}  Be6 {[%clk 0:02:28]} 31. d5 {[%clk 0:01:46]}  Bd7 {[%clk 0:02:25]} 32. c6 {[%clk 0:01:46]}  Be8 {[%clk 0:02:25]} 33. Rc1 {[%clk 0:01:37]}  Qd6 {[%clk 0:02:24]} 34. Qd2 {[%clk 0:01:27]}  Bc7 {[%clk 0:02:20]} 35. Qd4+ {[%clk 0:01:26]}  Kg8 {[%clk 0:02:20]} 36. Kg2 {[%clk 0:01:22]}  a5 {[%clk 0:02:18]} 37. Bc8 {[%clk 0:01:10]}  Qa3 {[%clk 0:02:02]} 38. Qc3 {[%clk 0:01:07]}  Qd6 {[%clk 0:02:00]} 39. Qd3 {[%clk 0:00:56]}  a4 {[%clk 0:01:59]} 40. Bd7 {[%clk 0:00:56]}  Bxd7 {[%clk 0:01:58]} 41. cxd7 {[%clk 0:00:57]}  Qxd7 {[%clk 0:01:59]} 42. Qc4 {[%clk 0:00:55]}  Bd6 {[%clk 0:01:59]} 43. Qc8+ {[%clk 0:00:55]}  Qxc8 {[%clk 0:01:58]} 44. Rxc8+ {[%clk 0:00:56]}  Kg7 {[%clk 0:01:58]} 45. Rd8 {[%clk 0:00:56]}  Be7 {[%clk 0:01:56]} 46. Rd7 {[%clk 0:00:56]}  Kf6 {[%clk 0:01:57]} 47. d6 {[%clk 0:00:54]}  Bf8 {[%clk 0:01:55]} 48. Rd8 {[%clk 0:00:48]} 1-0


[Site "https://www.chess.com"]